[Event "FIDE Zonal 4-2 Open 2023"]
[Site "Dimbroko"]
[Date "2023.03.27"]
[Round "1.1"]
[White "Ortega Amarelle, Mariano"]
[Black "David Leroy Debblay"]
[Result "1-0"]
[ECO "E73"]
[WhiteElo "2472"]
[BlackElo "1823"]
[Annotator "TA"]
[PlyCount "83"]
[EventDate "2023.03.25"]
[EventType "swiss"]
[SourceTitle "playchess.com"]
[Source "ChessBase"]
[SourceQuality "1"]
[TimeControl "40/5400+30:1800+30"]

{[%evp 9,83,42,74,53,69,23,77,78,95,81,86,83,90,91,89,64,63,65,79,78,98,97,122,101,155,159,141,137,161,141,173,10,245,129,187,200,187,202,199,189,180,169,147,110,124,123,106,120,123,125,126,117,131,75,196,149,206,206,337,351,531,520,6540,12834,12833,12834,12833,12834,2674,6649,12837,12838,12839,12839,12834,8005]} 1. c4 {[%emt 0:00:10]} g6 {[%emt 0:00:44]} 2. d4 {[%emt 0:00:15]} Bg7 {[%emt 0:00:08]} 3. e4 {[%emt 0:00:46]} d6 {[%emt 0:00:19]} 4. Nc3 {[%emt 0:00:41]} Nf6 {[%emt 0:01:08]} 5. Be2 {[%emt 0:00:48]} a6 {[%emt 0:04:27]} 6. Be3 {[%emt 0:01:55] E73: King's Indian: Averbakh Variation without 6...c5.} Nc6 {[%emt 0:00:28]} 7. Nf3 {[%emt 0:08:43]} (7. d5 $14 Nb8 8. h3) 7... Bg4 {[%emt 0:03:24]} (7... Ng4 $11 {keeps the balance.}) 8. d5 $16 {[%emt 0:00:37] White is better.} Bxf3 {[%emt 0:00:38][%mdl 64] [#] Remove Defender} 9. Bxf3 {[%emt 0:00:23]} Ne5 {[%emt 0:00:20]} 10. Be2 {[%emt 0:00:10]} c6 {[%emt 0:01:36]} 11. f4 {[%emt 0:04:21]} Ned7 {[%emt 0:00:12]} 12. dxc6 {[%emt 0:00:18]} bxc6 {[%emt 0:00:07]} 13. O-O {[%emt 0:00:12]} O-O {[%emt 0:00:26] [#]} 14. Qc2 $146 {[%emt 0:04:06]} ({Predecessor:} 14. Qd2 Qb8 15. Rac1 Rd8 16. b3 Qb4 17. Rfd1 h5 18. Bf3 Ng4 19. Bxg4 hxg4 20. Na4 Qxd2 21. Bxd2 {0-1 Liu,C (2364)-Malakhov,V (2709) CHN-chT China 2013 (14.1)}) 14... Qc7 {[%emt 0:00:53]} 15. Rad1 {[%emt 0:00:44]} e6 {[%emt 0:06:34]} 16. Rd2 {[%emt 0:03:41]} d5 {[%emt 0:03:20]} 17. e5 {[%emt 0:14:37]} (17. exd5 exd5 18. cxd5 cxd5 $16) 17... Ne8 {[%emt 0:00:24]} 18. Na4 {[%emt 0:00:48]} Qd8 {[%emt 0:08:40]} 19. cxd5 {[%emt 0:04:56]} cxd5 {[%emt 0:00:32]} 20. Rc1 $2 {[%emt 0:00:15]} ({White should play} 20. Nc5 $18) 20... f6 $2 {[%emt 0:00:56] [#]} (20... g5 $1 $11 {and Black is okay.}) 21. Qc6 {[%emt 0:14:22] Black is weak on the light squares} ({White must play} 21. Bg4 $1 $18 {[%cal Rg4e6]} f5 22. Bf3) 21... Kh8 {[%emt 0:08:29]} (21... fxe5 $16 22. f5 (22. Bxa6 exf4 23. Bf2 Ne5 $19) (22. Qxe6+ Kh8 $16) 22... Ndf6) 22. Nb6 $18 {[%emt 0:18:21]} Nxb6 {[%emt 0:04:39]} 23. Bxb6 {[%emt 0:00:10]} Qb8 {[%emt 0:00:11]} 24. Bc5 {[%emt 0:00:46] A strong pair of Bishops.} (24. Qxe6 $6 fxe5 25. Rc6 (25. Rxd5 $2 Rf6 $19 {[%mdl 64] Skewer}) 25... exf4 $16) 24... Rg8 {[%emt 0:02:10]} 25. Qxe6 {[%emt 0:04:16]} fxe5 {[%emt 0:01:41]} 26. fxe5 {[%emt 0:02:20]} (26. Bxa6 $2 Nc7 27. Qh3 Nxa6 $19) 26... Qxe5 {[%emt 0:01:06]} 27. Qxe5 {[%emt 0:02:13]} Bxe5 {[%emt 0:00:02]} 28. Bd4 $36 {[%emt 0:03:28][%mdl 2048] Black is under strong pressure.} Bxd4+ {[%emt 0:03:17]} 29. Rxd4 {[%emt 0:00:02]} Nf6 {[%emt 0:03:18]} 30. Rc6 {[%emt 0:00:18][%csl LRa6,LRf6]} Rgf8 {[%emt 0:00:19]} 31. Bxa6 {[%emt 0:01:40] White is much more active.} (31. Rxa6 $142 Rxa6 32. Bxa6) 31... Rae8 {[%emt 0:02:31]} (31... Nd7 $16) 32. Rd1 {[%emt 0:06:21]} (32. Rf4 $18 Re1+ 33. Rf1 Rxf1+ 34. Bxf1) 32... Ng4 {[%emt 0:05:45]} (32... Rb8 $16) 33. a4 {[%emt 0:00:27]} (33. Rxd5 $2 Re1+) 33... Rf2 {[%emt 0:00:06]} (33... Kg7 {was called for.} 34. Rc7+ (34. Rxd5 $2 Re1+) 34... Kh6) 34. Rc8 {[%emt 0:01:08]} (34. Rxd5 $2 {leads to mate.} Re1+) 34... Rxc8 {[%emt 0:38:40]} (34... Rff8 $142) 35. Bxc8 {[%emt 0:00:07] White is clearly winning.} Rxg2+ {[%emt 0:00:00]} (35... Rf4 $142 36. a5 (36. Rxd5 Ne3 $16) 36... Ne3) 36. Kxg2 {[%emt 0:00:21]} Ne3+ {[%emt 0:00:00]} 37. Kf3 {[%emt 0:00:35]} Nxd1 {[%emt 0:00:00]} 38. b4 {[%emt 0:00:37]} Nc3 {[%emt 0:00:00]} 39. a5 {[%emt 0:01:12][%cal Ba4a5,Ba5a6][%mdl 32]} d4 {[%emt 0:00:00]} 40. a6 {[%emt 0:01:21]} d3 {[%emt 0:00:00]} 41. Ke3 {[%emt 0:30:11]} ({Not} 41. a7 d2 42. a8=Q d1=Q+ 43. Kg2 Qe2+ 44. Kg1 Qe3+ 45. Kg2 Qd2+ 46. Kh1 Qc1+ 47. Kg2 Qc2+ 48. Kh3 Qd3+ 49. Kg2 Qe2+ 50. Kg1 Qe3+ 51. Kg2 Qe2+ $11) 41... Nd5+ {[%emt 0:02:05]} 42. Kd2 {[%emt 0:00:08] Weighted Error Value: White=0.27 (precise) /Black=0.50} ({Less strong is} 42. Kxd3 Nxb4+ 43. Ke4 Nxa6 $18) 1-0

[Event "FIDE Zonal 4-2 Open 2023"]
[Site "Dimbroko"]
[Date "2023.03.27"]
[Round "1.2"]
[White "Daniel Kolliemelen"]
[Black "Abdulraheem Abdulrahman Akinto"]
[Result "0-1"]
[ECO "D00"]
[WhiteElo "1805"]
[BlackElo "2302"]
[Annotator "TA"]
[PlyCount "83"]
[EventDate "2023.03.25"]
[EventType "swiss"]
[SourceTitle "playchess.com"]
[Source "ChessBase"]
[SourceQuality "1"]
[TimeControl "40/5400+30:1800+30"]

{[%evp 9,83,-27,-21,-28,-23,-43,-16,-17,-19,-38,-25,-49,-38,-87,-66,-70,-48,-41,-32,-72,-63,-61,-60,-95,-82,-82,-83,-82,-82,-83,-83,-125,-114,-146,-145,-151,-142,-151,-147,-141,-149,-208,-208,-218,-179,-181,-175,-235,-263,-257,-204,-210,-239,-273,-284,-283,-279,-280,-274,-289,-264,-293,-280,-298,-280,-273,-275,-324,-277,-1095,-1091,-29988,-29989,-29989,-29984,-29993]} 1. d4 {[%emt 0:00:13]} d5 {[%emt 0:00:00]} 2. f4 {[%emt 1:31:17]} Nf6 {[%emt 0:00:13]} 3. e3 {[%emt 0:00:00]} Bf5 {[%emt 0:00:43]} 4. Nf3 {[%emt 0:00:00]} e6 {[%emt 0:00:18]} 5. Bd3 {[%emt 0:00:00]} Be7 {[%emt 0:00:52]} 6. O-O {[%emt 0:00:00] D00: 1 d4 d5: Unusual lines.} O-O {[%emt 0:00:08]} 7. c3 {[%emt 0:00:00]} Ne4 {[%emt 0:03:42]} 8. Qe2 {[%emt 0:00:00] The position is equal.} c5 {[%emt 0:01:14][%cal Bc7c5,Bc5c4][%mdl 32]} 9. Nbd2 {[%emt 0:00:00]} Nc6 {[%emt 0:01:33] [#]} 10. Re1 $146 {[%emt 0:00:00]} ({Predecessor:} 10. Ne5 Nxd2 11. Bxd2 Bxd3 12. Nxd3 c4 13. Ne5 f5 14. g4 Qe8 15. gxf5 exf5 16. Kh1 {1-0 Torres Sigler,A (2162)-Vallee Rivas,G Guayana IRT CAAC 1er 2014 (3)}) 10... Rc8 {[%emt 0:01:49]} 11. Nf1 {[%emt 0:00:00]} (11. Bb1 $15) 11... c4 {[%emt 0:00:46]} 12. Bb1 {[%emt 0:00:00]} b5 {[%emt 0:00:39]} 13. N3d2 {[%emt 0:00:00]} Nxd2 {[%emt 0:09:03]} 14. Nxd2 {[%emt 0:00:00]} Bxb1 {[%emt 0:02:03]} 15. Rxb1 {[%emt 0:00:00]} b4 {[%emt 0:02:29]} 16. Ra1 {[%emt 0:00:00] Black keeps a firm grip on the game.} bxc3 {[%emt 0:02:45]} 17. bxc3 {[%emt 0:00:00]} Qa5 {[%emt 0:00:24]} 18. Nb1 {[%emt 0:00:00]} Rb8 {[%emt 0:01:42]} 19. Rf1 {[%emt 0:00:00]} f5 {[%emt 0:02:15]} 20. g4 {[%emt 0:00:00]} Rb7 {[%emt 0:07:24] Black has more active pieces.} 21. gxf5 {[%emt 0:00:00]} exf5 {[%emt 0:01:59]} 22. Qc2 {[%emt 0:00:00]} g6 {[%emt 0:01:15]} 23. Kh1 {[%emt 0:00:00]} Nd8 {[%emt 0:03:11][%cal Bc6d8,Bd8f7,Bf7d6][%mdl 32]} 24. Nd2 {[%emt 0:00:00]} Nf7 {[%emt 0:00:35]} 25. Nf3 {[%emt 0:00:00]} (25. a4 $17 {was worth a try.}) 25... Nd6 $19 {[%emt 0:01:29]} 26. Nd2 {[%emt 0:00:00]} Rfb8 {[%emt 0:00:54]} 27. Rg1 {[%emt 0:00:00]} Kh8 {[%emt 0:01:01]} 28. Kg2 {[%emt 0:00:00]} (28. a4 {is a better defense.}) 28... Nb5 {[%emt 0:02:35]} 29. Nb1 {[%emt 0:00:00]} Na3 {[%emt 0:03:41]} 30. Nxa3 {[%emt 0:00:00]} Bxa3 {[%emt 0:00:20][%cal Be7a3,Ba3b2,Bb2c3,Bc3b4][%mdl 32]} 31. Kh1 {[%emt 0:00:00]} Bb2 {[%emt 0:01:18]} 32. Rb1 {[%emt 0:00:00][%cal Rb1b2]} Bxc3 {[%emt 0:02:16][%mdl 64] [#] Discovered Attack} 33. Rxb7 {[%emt 0:00:00]} Rxb7 {[%emt 0:00:02]} 34. Qg2 {[%emt 0:00:00]} Qd8 {[%emt 0:01:59]} 35. Ba3 {[%emt 0:00:00]} Bb4 {[%emt 0:00:55]} 36. Rb1 {[%emt 0:00:00]} a5 {[%emt 0:00:20]} 37. Bc1 {[%emt 0:00:00]} Qd7 {[%emt 0:01:36]} 38. Qb2 {[%emt 0:00:00]} Qe7 {[%emt 0:07:37] [#] And now ...Qe4+ would win.} 39. a3 $2 {[%emt 0:00:00]} (39. Qg2 Rd7 40. Kg1) 39... Qe4+ {[%emt 0:36:55]} 40. Qg2 {[%emt 0:00:00]} Qxb1 {[%emt 0:00:00]} 41. Qxd5 {[%emt 0:12:44]} Qe4+ {[%emt 0:00:00]} 42. Kg1 {[%emt 0:37:16] Weighted Error Value: White=0.48/Black=0.09 (flawless)} 0-1

[Event "FIDE Zonal 4-2 Open 2023"]
[Site "Dimbroko"]
[Date "2023.03.27"]
[Round "1.3"]
[White "De Gondo, Simplice Armel"]
[Black "Kennedy Zinnah Kengo"]
[Result "0-1"]
[ECO "C56"]
[WhiteElo "2086"]
[BlackElo "1785"]
[Annotator "TA"]
[PlyCount "122"]
[EventDate "2023.03.25"]
[EventType "swiss"]
[SourceTitle "playchess.com"]
[Source "ChessBase"]
[SourceQuality "1"]
[TimeControl "40/5400+30:1800+30"]

{[%evp 13,122,114,110,112,170,175,312,310,337,325,320,308,305,278,382,382,395,336,398,374,358,-235,-247,-237,-218,-247,-237,-239,-243,-440,-16,-16,-16,-3,0,0,0,-139,-13,-18,0,-32,-21,-37,-31,-114,0,-135,-131,-118,-56,-154,-149,-102,0,-64,-25,-16,0,0,6,0,0,0,0,0,0,0,0,-19,-32,-137,0,-50,-20,-20,0,0,0,0,0,0,0,-141,-32,-172,-173,-514,-139,-139,-139,-139,-139,-159,-159,-9025,-5089,-29967,-29969,-29967,-29968,-29972,-29970,-29971,-29972,-29975,-29975,-29975,-29977,-29977,-29974]} 1. e4 {[%emt 0:00:03]} e5 {[%emt 0:00:42]} 2. Nf3 {[%emt 0:00:03]} Nc6 {[%emt 0:00:34]} 3. Bc4 {[%emt 0:00:03]} Bc5 {[%emt 0:01:08]} 4. c3 {[%emt 1:32:21][%cal Bc2c3,Bc3d4,Bd4d5][%mdl 32]} Nf6 {[%emt 0:00:19]} 5. O-O {[%emt 0:00:00]} O-O {[%emt 0:00:28]} 6. d4 {[%emt 0:00:00]} exd4 {[%emt 0:01:52]} 7. cxd4 {[%emt 0:00:00]} Be7 {[%emt 0:00:47]} 8. d5 {[%emt 0:00:00] C56: Two Knights: 4 d4 exd4 5 0-0 Nxe4.} Na5 {[%emt 0:00:35]} (8... Nb8 $16) 9. Bd3 $18 {[%emt 0:00:00]} d6 {[%emt 0:00:34]} (9... b6 {was worth a try.} 10. Nc3 Bb7) 10. b4 {[%emt 0:00:00] [#] White has a decisive advantage.} Nc4 $146 {[%emt 0:00:23]} ({Predecessor:} 10... c5 11. bxa5 Qxa5 12. Bd2 Qb6 13. a4 Bg4 14. Na3 a6 15. Nc4 Qa7 16. a5 Nd7 {1-0 Pinheiro,J (1768)-Farias,L (1475) Fortaleza Cearense Cup 2016 (1)}) 11. Bxc4 {[%emt 0:00:00]} Nxe4 {[%emt 0:00:08]} 12. Bb2 {[%emt 0:00:00]} Bg4 {[%emt 0:00:40]} 13. Nc3 {[%emt 0:00:00]} f5 {[%emt 0:00:34]} 14. Be2 {[%emt 0:00:00]} Bf6 {[%emt 0:00:29][%cal Be7f6,Bf6g5,Bg5d2][%mdl 32]} 15. Rc1 {[%emt 0:00:00]} Qe7 {[%emt 0:02:02]} 16. Re1 {[%emt 0:00:00]} Rae8 {[%emt 0:00:12][%cal Ba8e8,Be8e7,Be7e1][%mdl 32]} 17. Nd4 $4 {[%emt 0:00:00][%mdl 8192] [#]} (17. Qc2 $18 {and life is good for White.}) 17... Nxf2 $1 $19 {[%emt 0:06:14][%mdl 576] ( -> ...Qe3). Remove Defender, Decoy} 18. Qd2 {[%emt 0:00:00]} Bg5 {[%emt 0:01:46]} 19. Bxg4 {[%emt 0:00:00]} Bxd2 {[%emt 0:00:23]} 20. Rxe7 {[%emt 0:00:00]} Rxe7 21. Nxf5 {[%emt 0:00:00]} (21. Kxf2 $2 {too greedy.} fxg4+ 22. Nf3 Be3+ 23. Kg3 Bxc1 24. Bxc1 gxf3 $19) (21. Be2 {is the only way for White.} Nd3 22. Bxd3 Bxc1 23. Bxc1 Re1+ 24. Kf2 Rxc1 25. Nce2) 21... Rxf5 $2 {[%emt 0:09:33]} (21... Nxg4 $19 22. Nxe7+ Kh8) 22. Bxf5 $11 {[%emt 0:00:00] This pair of bishops is nice.} Bxc1 {[%emt 0:00:11]} 23. Bxc1 {[%emt 0:00:00][%cal Oc1d2]} Re1+ {[%emt 1:12:26]} 24. Kxf2 {[%emt 0:00:00]} Rxc1 {[%emt 0:00:00]} 25. Nb1 {[%emt 0:00:00]} (25. Ne2 $11 Ra1 26. Nc3) 25... Kf7 {[%emt 0:00:00]} (25... Rc4 $1 $17 {[%cal Rc4f4] Threatens to win with ...Rf4+.} 26. Ke3 (26. Be6+ Kf8 $17) 26... Rxb4) 26. Bd3 {[%emt 0:00:00]} h6 {[%emt 0:00:00][%mdl 1024] Black has compensation.} 27. Nd2 {[%emt 0:00:00]} Kf6 {[%emt 0:00:00]} 28. Bc4 {[%emt 0:00:00]} Ke5 {[%emt 0:00:00]} 29. Ke3 {[%emt 0:00:00]} (29. Ke2 $15) 29... g5 {[%emt 0:00:00]} (29... Rc3+ $17 30. Kf2 Kd4) 30. h3 {[%emt 0:00:00]} (30. Nf3+ $11 {keeps the balance.} Kf6 31. Bb3) 30... Rc3+ $17 {[%emt 0:00:00]} 31. Ke2 {[%emt 0:00:00]} Kf4 {[%emt 0:00:00]} (31... Kd4 $17 32. Bb3 Re3+ 33. Kf2 Kd3) 32. Bd3 {[%emt 0:00:00]} ({White should try} 32. Bb3 $1 $15) 32... Ra3 {[%emt 0:00:00]} 33. Bc4 {[%emt 0:00:00]} Rc3 {[%emt 0:00:00]} ({Better is} 33... Ra4 $17 {[%cal Of4g3] Strongly threatening ...Kg3!} 34. Bb3 Rxb4) 34. Bb3 {[%emt 0:00:00]} (34. Bd3 $11) 34... h5 {[%emt 0:00:00]} 35. Nf1 {[%emt 0:00:00] Against Re3+. aiming for Kd2.} c5 {[%emt 0:00:00]} 36. dxc6 {[%emt 0:00:00]} Rxc6 {[%emt 0:00:00]} 37. g3+ {[%emt 0:00:00]} Ke5 {[%emt 0:00:00]} 38. Ne3 {[%emt 0:00:00]} b5 {[%emt 0:00:00]} 39. Bf7 {[%emt 0:00:00]} h4 {[%emt 0:00:00]} 40. gxh4 {[%emt 0:00:00]} gxh4 {[%emt 0:00:00]} 41. Kd3 {[%emt 0:15:51]} Rc1 {[%emt 0:00:00]} 42. Bd5 {[%emt 0:04:25] Dodges Rh1} (42. Ng4+ $1 $15 Kf4 43. Ne3) 42... Kf4 {[%emt 0:00:00]} ({Black should play} 42... Rb1 $1 $17 43. Bc6 Rxb4) 43. Kd2 {[%emt 0:02:57]} (43. Be6 $11) 43... Rb1 {[%emt 0:00:00]} (43... Rg1 $5 {[%cal Rg1g3]} 44. Nd1 Ke5 $17) 44. Nc2 {[%emt 0:05:47]} Kg3 {[%emt 0:00:00]} 45. Be6 {[%emt 0:00:24]} Rh1 {[%emt 0:00:00]} 46. Nd4 {[%emt 0:02:19]} Kf4 {[%emt 0:00:00] White must now prevent ...Ke5.} 47. Nxb5 {[%emt 0:02:31] And now a4 would win.} Ke5 {[%emt 0:00:00]} 48. Nc7 {[%emt 0:13:23] [#]} (48. Bg4 $11) 48... d5 {[%emt 0:00:00]} 49. Bxd5 {[%emt 0:01:00]} (49. Bc8 $1 $15) 49... Rxh3 {[%emt 0:00:00]} 50. Bc4 $2 {[%emt 0:01:46]} (50. Ba8 {is more resistant.}) 50... Rg3 $2 {[%emt 0:00:00]} (50... Rh2+ $19 {and Black stays clearly on top.} 51. Kd1 Rf2) 51. Bf1 {[%emt 0:01:28]} h3 {[%emt 0:00:00]} 52. Bxh3 {[%emt 0:00:48]} Rxh3 {[%emt 0:00:00][%mdl 4096] Endgame KR-KN} 53. a4 {[%emt 0:00:39] [#]} Rh7 $1 {[%emt 0:00:00]} 54. Nb5 {[%emt 0:00:50] [#] This costs White the game.} (54. Na6 $17) 54... a6 $1 $19 {[%emt 0:00:00][%cal Ba7a6,Ba6a5][%mdl 32]} 55. Nc3 {[%emt 0:00:00]} Kd4 {[%emt 0:00:00] Black mates.} 56. b5 {[%emt 0:00:00]} a5 {[%emt 0:00:00]} 57. b6 {[%emt 0:00:00]} Kc5 {[%emt 0:00:00]} 58. Kc2 {[%emt 0:00:00]} Kxb6 {[%emt 0:00:00]} 59. Kb3 {[%emt 0:00:00]} Rh4 {[%emt 0:00:00]} 60. Nb5 {[%emt 0:00:00]} Kc5 {[%emt 0:00:00]} 61. Ka3 {[%emt 0:00:00]} Rh3+ {[%emt 0:00:00] Weighted Error Value: White=0.71/Black=0.40} 0-1

[Event "FIDE Zonal 4-2 Open 2023"]
[Site "Dimbroko"]
[Date "2023.03.27"]
[Round "1.4"]
[White "KONAN KOUASSI AUGUSTIN"]
[Black "Manan, Yoboue Hermann"]
[Result "0-1"]
[ECO "A00"]
[WhiteElo "1775"]
[BlackElo "2015"]
[Annotator "TA"]
[PlyCount "70"]
[EventDate "2023.03.25"]
[EventType "swiss"]
[SourceTitle "playchess.com"]
[Source "ChessBase"]
[SourceQuality "1"]
[TimeControl "40/5400+30:1800+30"]

{[%evp 9,70,-19,4,-62,-43,-96,-72,-70,-38,-34,-35,-70,-59,-66,-65,-61,-41,-50,-54,-54,-53,-62,25,-81,-83,-95,-99,-104,-81,-97,-112,-104,-41,-317,-320,-304,-292,-269,-163,-152,-137,-122,-132,-320,-323,-472,-461,-447,-429,-29988,-29989,-29990,-29991,-29991,-29992,-29993,-29994,-29996,-29997,-29997,-29998,-29998,-29999]} 1. b4 {[%emt 0:02:35]} d5 {[%emt 0:00:45]} 2. Bb2 {[%emt 0:00:17]} Bf5 {[%emt 1:30:45]} 3. Nf3 {[%emt 1:29:08]} e6 {[%emt 0:00:30]} 4. e3 {[%emt 0:00:30]} Nf6 {[%emt 0:00:30]} 5. a3 {[%emt 0:00:30]} Nbd7 {[%emt 0:00:00]} 6. Bb5 {[%emt 0:00:30] [#] A00: Irregular Openings.} (6. c4 $11) 6... c6 $146 {[%emt 0:00:00]} ({Predecessor:} 6... Bd6 7. d4 c6 8. Be2 h6 9. Nbd2 Nb6 10. c4 Bc7 11. Nh4 Bh7 12. c5 Nbd7 13. Nhf3 g5 {0-1 Czarnik,A-Delarge,D FRA-ch distr corr 1991}) 7. Ba4 {[%emt 0:00:00]} (7. Be2 $15) 7... b5 {[%emt 0:00:00]} 8. Bb3 {[%emt 0:00:00] Black is better.} c5 {[%emt 0:00:00] Inhibits Nd4.} 9. bxc5 {[%emt 0:00:00]} Nxc5 {[%emt 0:00:00]} 10. Ba2 {[%emt 0:00:00]} Na4 {[%emt 0:00:00]} 11. Bd4 {[%emt 0:00:00][%cal Oc2c4]} a6 {[%emt 0:00:00]} 12. O-O {[%emt 0:00:00][%cal Oc2c4]} Be7 {[%emt 0:00:00]} 13. Ne5 {[%emt 0:00:00]} Qc7 {[%emt 0:00:00] Dodges Nc6} 14. Bb3 {[%emt 0:00:00]} Nc5 {[%emt 0:00:00]} 15. Nc3 {[%emt 0:00:00]} Nfd7 {[%emt 0:05:30] [#]} ({Black should play} 15... h6 $15) 16. Nxd5 {[%emt 0:00:00]} exd5 $17 {[%emt 0:00:30]} 17. Bxd5 {[%emt 0:05:30] [#] aiming for Nxd7.} Nxe5 {[%emt 0:00:00]} 18. Bxa8 {[%emt 0:00:00] [#]} O-O $1 {[%emt 0:00:00] Strongly threatening ...Ng4.} 19. Bd5 {[%emt 0:00:00][%cal Oe3e4]} Rd8 {[%emt 0:00:00][%mdl 1024] Black has strong compensation.} 20. Ba2 {[%emt 0:00:00]} Ne6 {[%emt 0:00:00]} (20... Nc6 $17 21. Bxc5 Bxc5) 21. Bc3 {[%emt 0:00:00][%mdl 8192]} (21. Bxe5 $1 $15 Qxe5 22. d4) 21... Ng4 $19 {[%emt 0:00:00][%csl Gg4][%cal Rc7h2]} (21... Bxa3 22. Bxe6 Ng4 23. g3 (23. Bxf5 $2 Qxh2#) 23... Bxe6 24. Rxa3 $18) 22. g3 {[%emt 0:00:00][%cal Oe3e4]} Ng5 {[%emt 0:00:00]} ({Don't play} 22... Bxa3 23. Bxe6 Bxe6 24. Rxa3 $18) 23. Qe2 {[%emt 0:00:00]} h5 $40 {[%emt 0:00:00][%mdl 128] Hoping for ...Bf6. Black goes for the king.} (23... Bxa3 24. h4 Nh3+ 25. Kg2 $17) ({Stronger than} 23... Nh3+ 24. Kh1 $17) 24. f3 {[%emt 0:00:00]} Ne5 {[%emt 0:00:00] Black is much more active.} 25. h4 {[%emt 0:00:00] White is weak on the light squares} Ne6 {[%emt 0:00:00] Excellent horsemanship.} 26. e4 $2 {[%emt 0:00:00]} (26. Qf2 $17) 26... Bh3 {[%emt 0:00:00]} 27. Rfb1 {[%emt 0:00:00]} (27. Bxe6 $142 Bxf1 28. Bxf7+ Nxf7 29. Kxf1) 27... Nd4 {[%emt 0:05:30]} ({Not} 27... Bxa3 28. Bxe5 Qxe5 29. Kh2 $17) 28. Bxd4 {[%emt 0:00:00]} Rxd4 {[%emt 0:00:00]} 29. c3 {[%emt 0:00:00] [#]} (29. d3 $19 Ng4 30. f4) 29... Rxd2 $3 {[%emt 0:00:00][%mdl 576] Decoy. Black mates.} 30. Qxd2 {[%emt 0:02:39]} (30. Bxf7+ Kxf7) 30... Nxf3+ {[%emt 0:00:00][%mdl 64] Discovered Attack, Double Attack} 31. Kf2 {[%emt 0:00:20]} Nxd2 {[%emt 0:00:00]} 32. Bd5 {[%emt 0:01:19]} Qxc3 {[%emt 0:00:00]} 33. Rc1 {[%emt 0:01:54]} Bc5+ {[%emt 0:00:00]} 34. Ke1 {[%emt 0:00:39]} Nf3+ {[%emt 0:00:00]} 35. Ke2 {[%emt 0:00:26]} Qe3+ {[%emt 0:04:00] An entertaining game by Manan.   Weighted Error Value: White=0.54/Black=0.17 (very precise)} 0-1